bitfinex/quotes_SOLUSD_20241116
["timestamp","ask_amount","ask_price","bid_price","bid_amount"]
[1731743196744,8.76735129,219.1,219.07,0.12549]
[1731743197151,8.76735129,219.1,219.06,0.25098]
[1731743197352,8.76735129,219.11,219.06,0.25098]
[1731743198273,8.76735129,219.07,219.06,0.25098]
[1731743198464,4.5639,219.11,219.01,0.5164473]
[1731743198658,8.76735129,219.07,219.01,0.5164473]
[1731743199271,8.76735129,219.07,219.02,0.09367462]
[1731743199474,8.76735129,219.11,219.02,8.86102591]
[1731743199775,8.76735129,219.11,219.04,0.09367462]
[1731743199971,8.76735129,219.09,219.04,0.09367462]
[1731743200474,8.76735129,219.1,219.04,0.09367462]
[1731743200678,4.5639,219.11,219.04,0.09367462]
[1731743200862,13.33125129,219.11,219.04,0.09367462]
[1731743201470,13.33125129,219.11,219.04,23.87055862]
[1731743201471,8.76735129,219.11,219.04,23.87055862]
[1731743201706,8.76735129,219.13,219.06,0.09367462]
[1731743201848,8.76735129,219.13,219.08,0.09367462]
[1731743205473,13.33045129,219.15,219.08,0.09367462]
[1731743205666,15.0684,219.21,219.08,23.87055862]
[1731743205869,4.562,219.2,219.12,0.09367462]
[1731743206074,8.76735129,219.18,219.12,0.09367462]
[1731743206261,8.76735129,219.18,219.14,0.09367462]
[1731743206467,8.76735129,219.18,219.15,0.12549]
[1731743206784,13.32935129,219.2,219.15,0.25098]
[1731743209255,8.76735129,219.2,219.15,0.25098]
[1731743210479,8.76735129,219.2,219.16,0.09367462]
[1731743210681,8.76735129,219.22,219.17,0.25098]
[1731743210868,4.5615,219.23,219.17,0.25098]
[1731743211068,8.76735129,219.21,219.17,0.25098]
[1731743214781,8.76735129,219.22,219.17,0.25098]
[1731743215495,8.76735129,219.21,219.17,0.25098]
[1731743215706,24.5599,219.3,219.19,0.12549]
[1731743215871,24.5599,219.3,219.19,24.027864]
[1731743215872,8.76735129,219.25,219.19,24.027864]
[1731743217788,8.76735129,219.24,219.19,24.027864]
[1731743217969,8.76735129,219.24,219.2,0.34465462]
[1731743218294,8.76735129,219.25,219.2,24.12153862]
[1731743218494,8.76735129,219.25,219.2,0.34465462]
[1731743218785,8.76735129,219.26,219.2,0.34465462]
[1731743218995,4.5601,219.29,219.2,0.34465462]
[1731743219294,8.76735129,219.28,219.2,9.11200591]
[1731743221080,8.76735129,219.26,219.2,0.34465462]
[1731743221390,8.76735129,219.26,219.2,24.12153862]
[1731743222308,4.5599,219.3,219.2,24.12153862]
[1731743222470,7.04543954,219.35,219.24,32.88888991]
[1731743222471,4.5589,219.35,219.24,32.88888991]
[1731743222671,8.76735129,219.32,219.24,32.88888991]
[1731743222989,8.76735129,219.32,219.24,9.11200591]
[1731743223295,8.76735129,219.32,219.26,0.34465462]
[1731743225299,8.76735129,219.31,219.26,0.34465462]
[1731743225873,8.76735129,219.32,219.26,0.34465462]
[1731743227099,8.76735129,219.33,219.26,24.12153862]
[1731743227478,8.76735129,219.33,219.26,32.88888991]
[1731743228280,8.76735129,219.34,219.26,32.88888991]
[1731743228601,8.76735129,219.35,219.28,32.88888991]
[1731743229096,8.76735129,219.35,219.28,24.12153862]
[1731743230083,8.76735129,219.35,219.28,32.88888991]
[1731743230284,8.76735129,219.35,219.28,24.12153862]
[1731743232309,8.76735129,219.35,219.28,32.88888991]
[1731743233302,8.76735129,219.36,219.28,48.06048991]
[1731743233596,8.76735129,219.36,219.28,39.29313862]
[1731743233797,4.5585,219.37,219.28,48.06048991]
[1731743234010,8.76735129,219.36,219.28,48.06048991]
[1731743234705,20.0,219.42,219.3,24.12153862]
[1731743234888,8.76735129,219.37,219.3,32.88888991]
[1731743235202,4.5574,219.42,219.33,24.12153862]
[1731743235408,8.76735129,219.4,219.33,24.12153862]
[1731743235987,8.76735129,219.39,219.33,24.12153862]
[1731743236788,8.76735129,219.4,219.33,24.12153862]
[1731743236989,4.5571,219.44,219.35,0.09367462]
[1731743237196,8.76735129,219.41,219.35,0.34465462]
[1731743238981,8.76735129,219.4,219.35,0.34465462]
[1731743239192,8.76735129,219.36,219.28,15.1716]
[1731743239482,8.76735129,219.3,219.28,15.1716]
[1731743239885,8.76735129,219.32,219.28,15.1716]
[1731743240102,8.76735129,219.31,219.29,0.09367462]
[1731743240500,8.76735129,219.33,219.29,0.09367462]
[1731743241023,8.76735129,219.33,219.3,0.12549]
[1731743242006,8.76735129,219.34,219.32,0.12549]
[1731743242216,8.76735129,219.33,219.3,0.12549]
[1731743242514,8.76735129,219.32,219.3,0.12549]
[1731743242714,8.76735129,219.33,219.29,0.34465462]
[1731743244007,8.76735129,219.34,219.29,0.34465462]
[1731743244595,4.5582,219.39,219.31,0.12549]
[1731743244905,8.76735129,219.36,219.31,0.25098]
[1731743247903,4.557,219.44,219.33,0.12549]
[1731743248112,8.76735129,219.38,219.33,0.12549]
[1731743248623,8.76735129,219.38,219.32,0.21916462]
[1731743248940,4.557,219.44,219.33,0.12549]
[1731743249105,8.76735129,219.4,219.33,0.12549]
[1731743249419,8.76735129,219.4,219.34,0.09367462]
[1731743250425,24.5566,219.46,219.36,0.09367462]
[1731743250630,8.76735129,219.42,219.37,0.12549]
[1731743250827,8.76735129,219.42,219.37,0.25098]
[1731743252028,8.76735129,219.43,219.37,0.25098]
[1731743252728,4.5566,219.46,219.39,0.25098]
[1731743252925,8.76735129,219.44,219.39,0.12549]
[1731743253307,8.76735129,219.44,219.38,0.21916462]
[1731743253504,8.76735129,219.44,219.39,0.12549]
[1731743255535,8.76735129,219.45,219.39,0.12549]
[1731743255835,8.76735129,219.4,219.31,6.209]
[1731743256001,8.76735129,219.37,219.31,6.209]
[1731743256408,8.76735129,219.37,219.32,0.09367462]
[1731743257410,8.76735129,219.37,219.32,0.34465462]
[1731743257721,8.76735129,219.36,219.32,0.34465462]
[1731743258519,8.76735129,219.37,219.32,0.34465462]
[1731743259238,4.5579,219.4,219.32,0.34465462]
[1731743259411,4.5572,219.43,219.32,0.34465462]
[1731743259618,8.76735129,219.38,219.32,0.34465462]
[1731743262248,20.0,219.44,219.32,0.34465462]
[1731743262418,8.76735129,219.37,219.32,0.34465462]
[1731743270552,8.76735129,219.37,219.32,0.12549]
[1731743270553,8.76735129,219.35,219.32,0.12549]
[1731743270854,8.76735129,219.33,219.26,23.776884]
[1731743271028,8.76735129,219.31,219.26,23.776884]
[1731743271533,8.76735129,219.31,219.25,23.0503]
[1731743271737,8.76735129,219.31,219.26,0.09367462]
[1731743271956,8.76735129,219.31,219.28,0.09367462]
[1731743272242,8.76735129,219.31,219.29,0.25098]
[1731743273032,8.76735129,219.33,219.29,0.25098]
[1731743274426,8.76735129,219.31,219.29,0.25098]
[1731743277023,8.76735129,219.31,219.3,0.21916462]
[1731743277227,8.76735129,219.34,219.31,0.09367462]
[1731743277439,8.76735129,219.34,219.31,0.34465462]
[1731743278862,8.76735129,219.32,219.31,0.12549]
[1731743279154,8.76735129,219.32,219.22,8.76735129]
[1731743279353,8.76735129,219.32,219.2,86.5589]
[1731743279354,8.76735129,219.29,219.23,0.09367462]
[1731743280048,8.76735129,219.29,219.21,17.77783991]
[1731743280049,8.76735129,219.29,219.22,0.09367462]
[1731743280256,8.76735129,219.25,219.2,16.4589]
[1731743280445,8.76735129,219.23,219.2,16.4589]
[1731743280645,8.76735129,219.23,219.21,0.09367462]
[1731743280843,8.76735129,219.25,219.21,0.09367462]
[1731743281651,8.76735129,219.25,219.2,16.4589]
[1731743282134,8.76735129,219.25,219.21,0.09367462]
[1731743283060,8.76735129,219.25,219.22,0.12549]
[1731743285564,7.04543954,219.36,219.22,0.12549]
[1731743285750,8.76735129,219.3,219.22,0.12549]
[1731743286255,8.76735129,219.32,219.24,24.12153862]
[1731743286443,8.76735129,219.32,219.28,0.09367462]
[1731743286769,4.5586,219.37,219.31,0.12549]
[1731743286938,8.76735129,219.33,219.31,0.12549]
[1731743287550,8.76735129,219.33,219.31,0.25098]
[1731743288142,8.76735129,219.37,219.33,0.12549]
[1731743288846,7.04543954,219.43,219.34,0.09367462]
[1731743289045,8.76735129,219.38,219.34,0.09367462]
[1731743292573,7.04543954,219.44,219.36,0.34465462]
[1731743292775,8.76735129,219.42,219.36,24.12153862]
[1731743292965,8.76735129,219.42,219.36,0.34465462]
[1731743293766,8.76735129,219.38,219.35,0.12549]
[1731743294367,8.76735129,219.36,219.35,0.12549]
[1731743300183,8.76735129,219.38,219.35,0.12549]
[1731743300752,8.76735129,219.4,219.35,0.12549]
[1731743301250,8.76735129,219.4,219.37,0.12549]
[1731743301451,8.76735129,219.4,219.37,0.25098]
[1731743302379,8.76735129,219.42,219.37,0.25098]
[1731743302566,7.04543954,219.46,219.37,0.25098]
[1731743302876,8.76735129,219.43,219.37,0.25098]
[1731743303375,8.76735129,219.41,219.37,0.12549]
[1731743303676,8.76735129,219.39,219.37,0.12549]
[1731743304174,35.06940516,219.45,219.37,0.12549]
[1731743304375,8.76735129,219.4,219.37,0.12549]
[1731743305379,8.76735129,219.42,219.38,0.09367462]
[1731743305566,21.13631863,219.48,219.41,0.12549]
[1731743305766,8.76735129,219.45,219.41,0.12549]
[1731743305956,7.04543954,219.48,219.41,0.12549]
[1731743306154,8.76735129,219.44,219.41,0.12549]
[1731743306357,8.76735129,219.44,219.4,0.21916462]
[1731743306667,8.76735129,219.44,219.41,0.12549]
[1731743307060,8.76735129,219.42,219.41,0.12549]
[1731743311061,4.5563,219.48,219.41,0.12549]
[1731743311383,8.76735129,219.43,219.41,0.12549]
[1731743312682,8.76735129,219.42,219.41,0.12549]
[1731743313271,8.76735129,219.44,219.41,0.34465462]
[1731743313461,8.76735129,219.44,219.42,0.12549]
[1731743314081,8.76735129,219.44,219.39,0.21916462]
[1731743314082,7.04543954,219.52,219.4,0.12549]
[1731743314314,8.76735129,219.46,219.43,0.21916462]
[1731743314464,8.76735129,219.46,219.44,0.25098]
[1731743317189,8.76735129,219.48,219.46,0.12549]
[1731743317385,4.5547,219.55,219.46,0.12549]
[1731743317386,8.76735129,219.49,219.46,0.12549]
[1731743319378,8.76735129,219.48,219.46,0.12549]
[1731743322191,8.76735129,219.47,219.46,0.12549]
[1731743323385,4.5553,219.53,219.46,0.12549]
[1731743323592,8.76735129,219.47,219.46,0.12549]
[1731743334598,43.83675645,219.47,219.38,70.0]
[1731743334777,8.76735129,219.4,219.38,70.0]
[1731743335905,8.76735129,219.4,219.39,24.12153862]
[1731743337977,35.06940516,219.45,219.39,24.12153862]
[1731743337978,8.76735129,219.43,219.41,0.12549]
[1731743338182,8.76735129,219.44,219.43,0.25098]
[1731743341591,8.76735129,219.44,219.39,23.776884]
[1731743341798,8.76735129,219.42,219.4,0.25098]
[1731743342191,8.76735129,219.41,219.4,0.12549]
[1731743342495,8.76735129,219.41,219.35,79.13263984]
[1731743342798,35.06940516,219.45,219.35,79.13263984]
[1731743342799,8.76735129,219.37,219.36,0.09367462]
[1731743343198,8.76735129,219.38,219.36,0.09367462]
[1731743343806,8.76735129,219.38,219.37,0.21916462]
[1731743344006,8.76735129,219.38,219.37,24.12153862]
[1731743344616,8.76735129,219.38,219.37,0.34465462]
[1731743347325,8.76735129,219.4,219.39,0.21916462]
[1731743347498,8.76735129,219.4,219.39,24.12153862]
[1731743348222,8.76735129,219.42,219.4,0.21916462]
[1731743348400,8.76735129,219.42,219.41,0.12549]
[1731743356990,8.76735129,219.42,219.4,23.902374]
[1731743357197,8.76735129,219.42,219.35,9.13263984]
[1731743357418,8.76735129,219.37,219.32,70.0]
[1731743357809,8.76735129,219.37,219.33,0.09367462]
[1731743358516,8.76735129,219.37,219.35,0.09367462]
[1731743358712,8.76735129,219.37,219.36,0.21916462]
[1731743358919,8.76735129,219.37,219.36,0.34465462]
[1731743362106,8.76735129,219.39,219.36,0.34465462]
[1731743362303,8.76735129,219.39,219.37,0.12549]
[1731743373908,8.76735129,219.42,219.4,0.21916462]
[1731743374110,8.76735129,219.42,219.41,0.12549]
[1731743374363,8.76735129,219.42,219.41,0.25098]
[1731743384220,8.76735129,219.42,219.41,0.12549]
[1731743384450,8.76735129,219.42,219.35,70.0]
[1731743384451,8.76735129,219.42,219.35,0.25098]
[1731743384632,4.5573,219.43,219.35,0.25098]
[1731743384633,8.76735129,219.37,219.36,0.09367462]
[1731743386439,8.76735129,219.37,219.36,0.21916462]
[1731743386969,8.76735129,219.37,219.36,0.34465462]
[1731743390357,8.76735129,219.39,219.37,24.027864]
[1731743391080,8.76735129,219.39,219.37,0.25098]
[1731743394748,4.5569,219.45,219.37,0.25098]
[1731743394953,8.76735129,219.39,219.37,0.25098]
[1731743402152,8.76735129,219.39,219.31,15.1647]
[1731743402153,8.76735129,219.39,219.3,28.19258792]
[1731743402355,8.76735129,219.34,219.28,98.19258792]
[1731743402548,8.76735129,219.32,219.28,70.0]
[1731743403048,8.76735129,219.32,219.29,0.09367462]
[1731743403255,8.76735129,219.32,219.26,113.21968792]
[1731743403451,8.76735129,219.32,219.26,85.0271]
[1731743404048,8.76735129,219.32,219.27,0.09367462]
[1731743404772,8.76735129,219.32,219.27,24.12153862]
[1731743406658,8.76735129,219.3,219.27,24.12153862]
[1731743406856,8.76735129,219.28,219.27,24.12153862]
[1731743410171,21.9717,219.4,219.31,0.21916462]
[1731743410371,15.4766,219.4,219.37,0.21916462]
[1731743410677,8.76735129,219.41,219.38,0.12549]
[1731743410873,8.76735129,219.41,219.38,0.25098]
[1731743411171,8.76735129,219.4,219.38,0.25098]
[1731743411916,11.0518,219.46,219.38,0.25098]
[1731743412195,8.76735129,219.4,219.38,0.25098]
[1731743412685,8.76735129,219.42,219.38,0.25098]
[1731743413754,6.4951,219.46,219.38,0.25098]
[1731743414068,8.76735129,219.42,219.38,0.25098]
[1731743417286,8.76735129,219.4,219.38,0.25098]
[1731743419591,8.76735129,219.41,219.38,0.25098]
[1731743420489,11.0517,219.46,219.38,0.25098]
[1731743420698,8.76735129,219.42,219.38,0.25098]
[1731743421900,16.1612,219.47,219.38,0.25098]
[1731743422091,16.1612,219.47,219.42,0.12549]
[1731743422398,8.76735129,219.45,219.42,0.25098]
[1731743422572,10.8661,219.51,219.42,0.25098]
[1731743422772,8.76735129,219.46,219.41,0.34465462]
[1731743423091,8.76735129,219.45,219.41,0.34465462]
[1731743423803,8.76735129,219.46,219.42,0.09367462]
[1731743424702,10.8661,219.51,219.42,0.09367462]
[1731743424703,8.76735129,219.45,219.42,0.09367462]
[1731743425078,8.76735129,219.45,219.41,0.25098]
[1731743425286,8.76735129,219.42,219.36,70.0]
[1731743425482,8.76735129,219.4,219.36,70.0]
[1731743425703,8.76735129,219.4,219.37,0.09367462]
[1731743426086,8.76735129,219.41,219.37,0.09367462]
[1731743426483,8.76735129,219.41,219.38,0.12549]
[1731743427107,8.76735129,219.41,219.38,0.25098]
[1731743430096,6.3105,219.51,219.38,0.25098]
[1731743430295,8.76735129,219.41,219.38,0.25098]
[1731743431911,8.76735129,219.42,219.38,0.25098]
[1731743432109,6.3105,219.51,219.43,0.09367462]
[1731743432290,8.76735129,219.45,219.44,0.25098]
[1731743432489,8.76735129,219.46,219.44,0.25098]
[1731743434426,8.76735129,219.47,219.44,0.25098]
[1731743436402,4.5555,219.52,219.44,0.25098]
[1731743436711,8.76735129,219.47,219.44,0.25098]
[1731743438200,4.5555,219.52,219.44,0.25098]
[1731743438400,8.76735129,219.47,219.44,0.25098]
[1731743439509,16.1612,219.53,219.45,0.21916462]
[1731743439808,8.76735129,219.48,219.47,0.12549]
[1731743440396,16.1612,219.53,219.47,0.09367462]
[1731743440589,8.76735129,219.48,219.47,0.34465462]
[1731743448504,8.76735129,219.48,219.47,0.12549]
[1731743448696,8.76735129,219.48,219.45,0.25098]
[1731743448897,8.76735129,219.46,219.45,0.25098]
[1731743449202,8.76735129,219.46,219.4,70.0]
[1731743449503,8.76735129,219.42,219.41,0.09367462]
[1731743450509,8.76735129,219.42,219.41,24.12153862]
[1731743452414,8.76735129,219.42,219.41,0.25098]
[1731743453001,8.76735129,219.42,219.37,70.0]
[1731743453222,0.1,219.54,219.51,70.0]
[1731743453223,7.15904894,219.54,219.51,70.0]
[1731743453519,42.95429366,219.64,219.51,70.0]
[1731743453520,8.76735129,219.58,219.51,70.0]
[1731743453826,8.76735129,219.58,219.52,0.09367462]
[1731743454007,8.76735129,219.56,219.52,0.09367462]
[1731743454504,8.76735129,219.56,219.52,24.12153862]
[1731743454898,8.76735129,219.55,219.52,24.12153862]
[1731743456197,8.76735129,219.55,219.52,24.027864]
[1731743456402,8.76735129,219.55,219.54,24.12153862]
[1731743457319,8.76735129,219.55,219.54,0.34465462]
[1731743458705,8.76735129,219.55,219.51,0.44866013]
[1731743458916,8.76735129,219.53,219.51,0.44866013]
[1731743459427,8.76735129,219.53,219.51,0.09367462]
[1731743459929,8.76735129,219.52,219.51,0.12549]
[1731743460409,8.76735129,219.52,219.48,0.44866013]
[1731743460613,8.76735129,219.49,219.48,0.44866013]
[1731743460819,8.76735129,219.49,219.47,0.44866013]
[1731743461048,35.06940516,219.56,219.47,0.44866013]
[1731743461049,8.76735129,219.48,219.47,0.44866013]
[1731743461229,8.76735129,219.48,219.46,0.44866013]
[1731743461426,8.76735129,219.47,219.46,0.44866013]
[1731743461738,8.76735129,219.47,219.45,0.44872551]
[1731743461940,8.76735129,219.46,219.45,0.44872551]
[1731743462130,8.76735129,219.46,219.44,0.44872551]
[1731743462727,8.76735129,219.46,219.45,0.25098]
[1731743464525,8.76735129,219.46,219.44,24.12153862]
[1731743464931,8.76735129,219.46,219.44,24.57026413]
[1731743465128,20.7551,219.59,219.47,24.12153862]
[1731743465345,8.76735129,219.54,219.47,33.33761542]
[1731743465639,8.76735129,219.54,219.49,24.12153862]
[1731743466335,8.76735129,219.54,219.49,0.34465462]
[1731743468940,16.2011,219.59,219.51,0.09367462]
[1731743469242,8.76735129,219.57,219.51,0.34465462]
[1731743472424,8.76735129,219.55,219.51,0.34465462]
[1731743473950,8.76735129,219.53,219.51,0.34465462]
[1731743474525,4.5536,219.61,219.51,0.34465462]
[1731743474732,8.76735129,219.53,219.51,0.34465462]
[1731743482139,4.5538,219.6,219.51,0.34465462]
[1731743482340,8.76735129,219.54,219.51,0.34465462]
[1731743491554,8.76735129,219.53,219.51,0.34465462]
[1731743495143,4.5541,219.58,219.51,0.34465462]
[1731743495346,8.76735129,219.53,219.47,70.0]
[1731743495548,8.76735129,219.49,219.45,24.027864]
[1731743496456,8.76735129,219.49,219.46,0.09367462]
[1731743499056,8.76735129,219.53,219.48,24.12153862]
[1731743501267,8.76735129,219.51,219.48,24.12153862]
[1731743502649,8.76735129,219.49,219.44,70.0]
[1731743503876,8.76735129,219.49,219.45,0.09367462]
[1731743504072,8.76735129,219.49,219.44,70.0]
[1731743504373,8.76735129,219.49,219.45,0.21916462]
[1731743505468,8.76735129,219.49,219.46,0.12549]
[1731743505673,8.76735129,219.48,219.46,0.12549]
[1731743507168,8.76735129,219.48,219.47,0.21916462]
[1731743507483,8.76735129,219.51,219.49,0.21916462]
[1731743507772,8.76735129,219.51,219.5,0.34465462]
[1731743508357,35.06940516,219.56,219.51,0.12549]
[1731743508565,8.76735129,219.52,219.51,0.12549]
[1731743512770,8.76735129,219.52,219.51,0.21916462]
[1731743512976,8.76735129,219.52,219.51,0.34465462]
[1731743517162,6.4498,219.63,219.53,0.12549]
[1731743517375,8.76735129,219.54,219.53,0.34465462]
[1731743517682,8.76735129,219.55,219.54,0.25098]
[1731743521287,8.76735129,219.55,219.49,0.25098]
[1731743521458,8.76735129,219.5,219.49,0.25098]
[1731743522405,8.76735129,219.5,219.49,0.34465462]
[1731743524058,8.76735129,219.51,219.5,0.09367462]
[1731743524365,8.76735129,219.52,219.5,0.09367462]
[1731743524564,8.76735129,219.51,219.44,98.52754952]
[1731743524765,8.76735129,219.48,219.44,70.0]
[1731743525079,8.76735129,219.48,219.45,0.09367462]
[1731743525283,8.76735129,219.49,219.45,0.09367462]
[1731743526183,8.76735129,219.49,219.47,0.21916462]
[1731743526380,4.555,219.54,219.48,0.12549]
[1731743526589,8.76735129,219.49,219.48,0.12549]
[1731743526960,8.76735129,219.49,219.47,0.21916462]
[1731743527180,8.76735129,219.48,219.47,0.21916462]
[1731743527378,8.76735129,219.48,219.47,0.25098]
[1731743527570,8.76735129,219.48,219.47,0.34465462]
[1731743527882,8.76735129,219.5,219.48,0.12549]
[1731743528064,8.76735129,219.5,219.49,0.09367462]
[1731743528259,8.76735129,219.52,219.5,0.25098]
[1731743529794,16.2505,219.59,219.51,0.21916462]
[1731743529966,16.2505,219.59,219.54,0.12549]
[1731743530163,4.5532,219.63,219.54,0.25098]
[1731743530383,8.76735129,219.57,219.54,0.25098]
[1731743531389,8.76735129,219.56,219.54,0.25098]
[1731743532469,8.76735129,219.57,219.55,0.34465462]
[1731743532864,8.76735129,219.59,219.55,0.34465462]
[1731743533067,8.76735129,219.6,219.55,0.34465462]
[1731743535398,8.76735129,219.59,219.55,0.34465462]
[1731743535976,8.76735129,219.58,219.55,0.34465462]
[1731743536580,8.76735129,219.57,219.55,0.34465462]
[1731743551391,8.76735129,219.59,219.55,0.34465462]
[1731743554299,8.76735129,219.6,219.55,0.34465462]
[1731743554477,8.76735129,219.59,219.55,0.34465462]
[1731743557696,8.76735129,219.58,219.55,0.34465462]
[1731743569188,11.0024,219.66,219.57,0.09367462]
[1731743569547,35.06940516,219.67,219.62,0.25098]
[1731743569808,4.5522,219.68,219.62,0.12549]
[1731743570401,4.5522,219.68,219.61,0.21916462]
[1731743570583,35.06940516,219.67,219.62,0.12549]
[1731743570790,8.76735129,219.63,219.62,0.12549]
[1731743575727,4.5523,219.67,219.62,0.12549]
[1731743576026,8.76735129,219.63,219.62,0.12549]
[1731743577501,4.5523,219.67,219.62,0.25098]
[1731743577708,8.76735129,219.63,219.62,0.34465462]
[1731743578112,20.3316,219.69,219.63,0.12549]
[1731743578315,20.3316,219.69,219.64,0.12549]
[1731743578516,8.76735129,219.65,219.64,0.12549]
[1731743579108,8.76735129,219.65,219.63,0.09367462]
[1731743580426,8.76735129,219.64,219.63,0.09367462]
[1731743580818,8.76735129,219.64,219.62,0.25098]
[1731743581020,8.76735129,219.63,219.62,0.25098]
[1731743581728,8.76735129,219.63,219.57,23.776884]
[1731743581939,8.76735129,219.59,219.58,0.25098]
[1731743582307,8.76735129,219.59,219.57,0.25098]
[1731743582641,8.76735129,219.59,219.58,0.09367462]
[1731743583527,8.76735129,219.6,219.58,0.09367462]
[1731743584515,24.5516,219.7,219.58,0.09367462]
[1731743584728,4.5516,219.7,219.6,0.09367462]
[1731743585036,8.76735129,219.64,219.6,0.09367462]
[1731743586424,6.546,219.71,219.6,0.09367462]
[1731743586425,4.5515,219.71,219.6,0.09367462]
[1731743586626,8.76735129,219.66,219.6,0.09367462]
[1731743587253,8.76735129,219.62,219.55,110.97828964]
[1731743587416,8.76735129,219.6,219.56,20.0]
[1731743587619,8.76735129,219.61,219.57,0.09367462]
[1731743587835,8.76735129,219.62,219.57,0.09367462]
[1731743588317,8.76735129,219.63,219.57,0.09367462]
[1731743588540,8.76735129,219.63,219.57,24.12153862]
[1731743592949,8.76735129,219.65,219.59,24.12153862]
[1731743593327,8.76735129,219.63,219.59,24.12153862]
[1731743594730,4.5522,219.68,219.59,24.12153862]
[1731743594731,8.76735129,219.61,219.59,24.12153862]
[1731743595026,8.76735129,219.61,219.59,0.34465462]
[1731743595843,15.93,219.71,219.59,0.34465462]
[1731743596042,8.76735129,219.62,219.59,0.34465462]
[1731743596243,8.76735129,219.6,219.52,70.0]
[1731743596545,8.76735129,219.58,219.54,0.09367462]
[1731743597544,8.76735129,219.58,219.56,0.09367462]
[1731743597746,8.76735129,219.58,219.57,0.21916462]
[1731743598049,8.76735129,219.58,219.57,0.34465462]
[1731743600543,8.76735129,219.6,219.58,0.25098]
[1731743606050,4.5531,219.63,219.58,0.25098]
[1731743606257,8.76735129,219.59,219.58,0.25098]
[1731743606753,8.76735129,219.59,219.54,24.027864]
[1731743607143,8.76735129,219.59,219.55,0.09367462]
[1731743607456,8.76735129,219.59,219.49,70.0]
[1731743607457,8.76735129,219.57,219.49,70.0]
[1731743607764,8.76735129,219.53,219.49,70.0]
[1731743608644,8.76735129,219.53,219.5,0.09367462]
[1731743609633,8.76735129,219.55,219.5,24.12153862]
[1731743610762,4.554,219.59,219.5,24.12153862]
[1731743610763,8.76735129,219.56,219.5,24.12153862]
[1731743612257,6.2094,219.61,219.5,24.12153862]
[1731743612436,8.76735129,219.57,219.5,24.12153862]
[1731743614148,4.5538,219.6,219.5,24.12153862]
[1731743614149,8.76735129,219.56,219.5,24.12153862]
[1731743614660,8.76735129,219.55,219.5,24.12153862]
[1731743615736,8.76735129,219.54,219.5,24.12153862]
[1731743615937,8.76735129,219.53,219.5,0.34465462]
[1731743616943,8.76735129,219.52,219.5,0.34465462]
[1731743617145,8.76735129,219.51,219.5,0.25098]
[1731743617463,8.76735129,219.51,219.5,0.12549]
[1731743617654,8.76735129,219.51,219.44,28.52754952]
[1731743617838,35.06940516,219.56,219.44,28.52754952]
[1731743617839,8.76735129,219.49,219.45,0.09367462]
[1731743618036,8.76735129,219.5,219.45,0.09367462]
[1731743618663,8.76735129,219.5,219.44,20.09367462]
[1731743619042,8.76735129,219.5,219.46,0.21916462]
[1731743619367,8.76735129,219.5,219.47,0.12549]
[1731743619567,8.76735129,219.5,219.47,0.25098]
[1731743632081,4.5549,219.55,219.47,0.25098]
[1731743632263,8.76735129,219.51,219.47,0.25098]
[1731743632968,8.76735129,219.5,219.47,0.25098]
[1731743639281,8.76735129,219.5,219.42,28.76735129]
[1731743639467,8.76735129,219.48,219.43,0.25098]
[1731743639664,8.76735129,219.48,219.44,0.09367462]
[1731743640390,4.5556,219.51,219.4,28.52754952]
[1731743640391,8.76735129,219.46,219.4,28.52754952]
[1731743640591,8.76735129,219.42,219.4,28.52754952]
[1731743640903,8.76735129,219.42,219.38,0.09367462]
[1731743641378,8.76735129,219.42,219.35,112.79132429]
[1731743641379,8.76735129,219.42,219.36,28.52754952]
[1731743641895,8.76735129,219.42,219.38,0.09367462]
[1731743642104,8.76735129,219.43,219.41,0.12549]
[1731743642287,8.76735129,219.43,219.41,0.25098]
[1731743642493,8.76735129,219.44,219.41,0.25098]
[1731743642796,4.5565,219.47,219.41,0.25098]
[1731743642797,8.76735129,219.45,219.41,0.25098]
[1731743643003,20.0744,219.5,219.43,0.12549]
[1731743643298,8.76735129,219.48,219.43,0.12549]
[1731743647609,8.76735129,219.48,219.43,0.12549]
[1731743647776,8.76735129,219.49,219.43,0.12549]
[1731743649609,8.76735129,219.49,219.43,0.25098]
[1731743653302,8.76735129,219.49,219.45,0.25098]
[1731743653484,8.76735129,219.49,219.45,0.12549]
[1731743656607,8.76735129,219.47,219.37,0.12549]
[1731743656803,8.76735129,219.44,219.38,0.09367462]
[1731743657007,8.76735129,219.44,219.4,0.09367462]
[1731743657304,8.76735129,219.44,219.41,0.25098]
[1731743657508,8.76735129,219.44,219.41,0.12549]
[1731743658096,8.76735129,219.44,219.4,0.21916462]
[1731743658411,8.76735129,219.44,219.41,0.12549]
[1731743659810,4.5556,219.51,219.42,0.09367462]